fUST/lending_fUST_20250727
["ID","MTS","AMOUNT","RATE_DAILY","PERIOD"]
[375243272,1753596654258,-460.0,0.00020273,2]
[375243273,1753596654268,-460.0,0.00020273,2]
[375243274,1753596654277,-460.0,0.00020273,2]
[375243275,1753596654286,-553.64,0.00020273,2]
[375243276,1753596654296,-460.0,0.00020273,2]
[375243277,1753596654305,-460.0,0.00020273,2]
[375243278,1753596654315,-460.0,0.00020273,2]
[375243279,1753596654326,-1138.3,0.00020273,2]
[375243280,1753596654335,-460.0,0.00020273,2]
[375243281,1753596654344,-460.0,0.00020273,2]
[375243282,1753596654354,-460.0,0.00020273,2]
[375243283,1753596654363,-2361.01423729,0.00020314,3]
[375243284,1753596654373,-1500.0,0.00020464,2]
[375243285,1753596654383,-2361.01423729,0.00020521,3]
[375243286,1753596654394,-260.0,0.00020538,2]
[375243287,1753596654403,-287.09203044,0.00020547,2]
[375243288,1753596654414,-460.0,0.00020547,2]
[375243289,1753596654425,-460.0,0.00020547,2]
[375243290,1753596654434,-460.0,0.00020547,2]
[375243291,1753596654444,-602.89250735,0.00020547,2]
[375243292,1753596654455,-460.0,0.00020547,2]
[375243293,1753596654464,-460.0,0.00020547,2]
[375243294,1753596654474,-460.0,0.00020547,2]
[375243295,1753596654484,-353.73641951,0.00020547,2]
[375243296,1753596654494,-460.0,0.00020547,2]
[375243297,1753596654505,-460.0,0.00020547,2]
[375243298,1753596654515,-547.85,0.00020547,2]
[375243299,1753596654525,-460.0,0.00020547,2]
[375243300,1753596654535,-460.0,0.00020547,2]
[375243301,1753596654544,-460.0,0.00020547,2]
[375243302,1753596654553,-460.0,0.00020547,2]
[375243303,1753596654563,-460.0,0.00020547,2]
[375243304,1753596654572,-460.0,0.00020547,2]
[375243305,1753596654581,-460.0,0.00020547,2]
[375243306,1753596654591,-587.21,0.00020547,2]
[375243307,1753596654600,-460.0,0.00020547,2]
[375243308,1753596654611,-460.0,0.00020547,2]
[375243309,1753596654623,-460.0,0.00020547,2]
[375243310,1753596654632,-460.0,0.00020547,2]
[375243311,1753596654643,-460.0,0.00020547,2]
[375243312,1753596654653,-3039.04,0.00020547,2]
[375243313,1753596654667,-460.0,0.00020547,2]
[375243314,1753596654677,-460.0,0.00020547,2]
[375243315,1753596654687,-460.0,0.00020547,2]
[375243316,1753596654697,-460.0,0.00020547,2]
[375243317,1753596654708,-460.0,0.00020547,2]
[375243318,1753596654717,-460.0,0.00020547,2]
[375243319,1753596654727,-460.0,0.00020547,2]
[375243320,1753596654736,-936.39,0.00020547,2]
[375243321,1753596654747,-460.0,0.00020547,2]
[375243322,1753596654757,-460.0,0.00020547,2]
[375243323,1753596654766,-564.33,0.00020547,2]
[375243324,1753596654775,-634.76,0.00020547,2]
[375243325,1753596654787,-389.31023217,0.00020547,2]
[375243326,1753596654796,-460.0,0.00020547,2]
[375243327,1753596654808,-460.0,0.00020547,2]
[375243328,1753596654817,-460.0,0.00020547,2]
[375243329,1753596654827,-460.0,0.00020547,2]
[375243330,1753596654837,-460.0,0.00020547,2]
[375243331,1753596654847,-460.0,0.00020547,2]
[375243332,1753596654857,-460.0,0.00020547,2]
[375243333,1753596654867,-911.75,0.00020547,2]
[375243334,1753596654879,-460.0,0.00020547,2]
[375243335,1753596654891,-483.91631574,0.00020547,2]
[375243336,1753596654902,-460.0,0.00020547,2]
[375243337,1753596654912,-572.8,0.00020547,2]
[375243338,1753596654921,-471.07,0.00020547,2]
[375243339,1753596654931,-460.0,0.00020547,2]
[375243340,1753596654940,-460.0,0.00020547,2]
[375243341,1753596654950,-2143.33,0.00020547,2]
[375243342,1753596654959,-1689.6,0.00020547,2]
[375243343,1753596654969,-460.0,0.00020547,2]
[375243344,1753596654978,-460.0,0.00020547,2]
[375243345,1753596654987,-2858.67,0.00020547,2]
[375243346,1753596654997,-266.33752973,0.00020547,2]
[375243347,1753596655007,-590.88,0.00020547,2]
[375243348,1753596655016,-460.0,0.00020547,2]
[375243349,1753596655026,-604.7956408,0.00020547,2]
[375243350,1753596655035,-460.0,0.00020547,2]
[375243351,1753596655044,-460.0,0.00020547,2]
[375243352,1753596655054,-460.0,0.00020547,2]
[375243353,1753596655063,-995.46,0.00020547,2]
[375243354,1753596655072,-527.8,0.00020547,2]
[375243355,1753596655081,-460.0,0.00020547,2]
[375243356,1753596655091,-460.0,0.00020547,2]
[375243357,1753596655100,-1427.28,0.00020547,2]
[375243358,1753596655110,-460.0,0.00020547,2]
[375243359,1753596655119,-1048.08,0.00020547,2]
[375243360,1753596655129,-460.0,0.00020547,2]
[375243361,1753596655138,-460.0,0.00020547,2]
[375243362,1753596655147,-1007.72,0.00020547,2]
[375243363,1753596655157,-460.0,0.00020547,2]
[375243364,1753596655166,-460.0,0.00020547,2]
[375243365,1753596655175,-460.0,0.00020547,2]
[375243366,1753596655185,-1381.47,0.00020547,2]
[375243367,1753596655194,-460.0,0.00020547,2]
[375243368,1753596655204,-460.0,0.00020547,2]
[375243369,1753596655213,-267.80498003,0.00020547,2]
[375243370,1753596655222,-460.56,0.00020547,2]
[375243371,1753596655232,-460.0,0.00020547,2]
[375243372,1753596655241,-495.47750282,0.00020547,2]
[375243373,1753596655250,-460.0,0.00020547,2]
[375243374,1753596655260,-460.0,0.00020547,2]
[375243375,1753596655269,-460.0,0.00020547,2]
[375243376,1753596655278,-460.0,0.00020547,2]
[375243377,1753596655287,-460.0,0.00020547,2]
[375243378,1753596655297,-1013.43,0.00020547,2]
[375243379,1753596655306,-460.0,0.00020547,2]
[375243380,1753596655315,-460.0,0.00020547,2]
[375243381,1753596655324,-460.0,0.00020547,2]
[375243382,1753596655334,-460.0,0.00020547,2]
[375243383,1753596655343,-1322.43,0.00020547,2]
[375243384,1753596655352,-463.05,0.00020547,2]
[375243385,1753596655362,-1359.23,0.00020547,2]
[375243386,1753596655371,-463.84583748,0.00020547,2]
[375243387,1753596655381,-460.0,0.00020547,2]
[375243388,1753596655390,-553.64,0.00020547,2]
[375243389,1753596655399,-460.0,0.00020547,2]
[375243390,1753596655408,-1138.3,0.00020547,2]
[375243391,1753596655417,-460.0,0.00020547,2]
[375243392,1753596655427,-1000.0,0.00020568,2]
[375243393,1753596655436,-1000.0,0.00020568,2]
[375243394,1753596655445,-1500.0,0.00020568,2]
[375243395,1753596655455,-151.0,0.000207,3]
[375243396,1753596655465,-2361.01423729,0.00020728,3]
[375243397,1753596655553,-151.0,0.000208,4]
[375243398,1753596655564,-500.0,0.00020816,2]
[375243399,1753596655574,-460.0,0.00020821,2]
[375243400,1753596655583,-460.0,0.00020821,2]
[375243401,1753596655591,-460.0,0.00020821,2]
[375243402,1753596655601,-460.0,0.00020821,2]
[375243403,1753596655611,-460.0,0.00020821,2]
[375243404,1753596655619,-547.85,0.00020821,2]
[375243405,1753596655629,-460.0,0.00020821,2]
[375243406,1753596655638,-148.82537601,0.00020821,2]
[375243407,1753596655754,-311.17462399,0.00020821,2]
[375243408,1753596655764,-460.0,0.00020821,2]
[375243409,1753596655773,-460.0,0.00020821,2]
[375243410,1753596655783,-460.0,0.00020821,2]
[375243411,1753596655791,-460.0,0.00020821,2]
[375243412,1753596655801,-513.42699304,0.00020821,2]
[375243413,1753596655810,-587.21,0.00020821,2]
[375243414,1753596655820,-500.52702049,0.00020821,2]
[375243415,1753596655830,-460.0,0.00020821,2]
[375243416,1753596655840,-348.26216448,0.00020821,2]
[375243417,1753596655850,-460.0,0.00020821,2]
[375243418,1753596655860,-1451.15299499,0.00020821,2]
[375243419,1753596655961,-460.0,0.00019178,2]
[375243420,1753596655970,-130.08263942,0.00019452,2]
[375243421,1753596656078,-236.55542966,0.00019452,2]
[375243422,1753596656397,-460.0,0.00019178,2]
[375243423,1753596656407,-93.36193092,0.00019452,2]
[375243424,1753596656416,-460.0,0.00019452,2]
[375243425,1753596656426,-460.0,0.00019726,2]
[375243426,1753596656436,-460.0,0.00019726,2]
[375243427,1753596656445,-460.0,0.0002,2]
[375243428,1753596656456,-460.0,0.0002,2]
[375243429,1753596656465,-460.0,0.00020273,2]
[375243430,1753596656475,-460.0,0.00020273,2]
[375243431,1753596656484,-460.0,0.00020273,2]
[375243432,1753596656493,-460.0,0.00020547,2]
[375243433,1753596656503,-1587.88700501,0.00020821,2]
[375243434,1753596656512,-460.0,0.00020821,2]
[375243435,1753596656522,-460.0,0.00020821,2]
[375243436,1753596656531,-460.0,0.00020821,2]
[375243437,1753596656541,-460.0,0.00020821,2]
[375243438,1753596656551,-460.0,0.00020821,2]
[375243439,1753596656561,-460.0,0.00020821,2]
[375243440,1753596656571,-460.0,0.00020821,2]
[375243441,1753596656583,-659.67119378,0.00020821,2]
[375243442,1753596656596,-276.71880622,0.00020821,2]
[375243443,1753596656606,-460.0,0.00020821,2]
[375243444,1753596656619,-296.85,0.00020821,2]
[375243445,1753596656629,-146.90561272,0.00020821,2]
[375243446,1753596656792,-460.0,0.00019178,2]
[375243447,1753596656801,-417.42438728,0.00020821,2]
[375243448,1753596656811,-634.76,0.00020821,2]
[375243449,1753596656821,-460.0,0.00020821,2]
[375243450,1753596656830,-589.16690425,0.00020821,2]
[375243451,1753596656840,-460.0,0.00020821,2]
[375243452,1753596656850,-911.75,0.00020821,2]
[375243453,1753596656859,-460.0,0.00020821,2]
[375243454,1753596656868,-460.0,0.00020821,2]
[375243455,1753596656878,-572.8,0.00020821,2]
[375243456,1753596656887,-471.07,0.00020821,2]
[375243457,1753596656896,-215.14403475,0.00020821,2]
[375243458,1753596656906,-2143.33,0.00020821,2]
[375243459,1753596656916,-1689.6,0.00020821,2]
[375243460,1753596656926,-460.0,0.00020821,2]
[375243461,1753596656935,-2858.67,0.00020821,2]
[375243462,1753596656945,-590.88,0.00020821,2]
[375243463,1753596656956,-460.0,0.00020821,2]
[375243464,1753596656966,-460.0,0.00020821,2]
[375243465,1753596656975,-460.0,0.00020821,2]
[375243466,1753596656985,-527.8,0.00020821,2]
[375243467,1753596656997,-460.0,0.00020821,2]
[375243468,1753596657006,-460.0,0.00020821,2]
[375243469,1753596657015,-1427.28,0.00020821,2]
[375243470,1753596657025,-1048.08,0.00020821,2]
[375243471,1753596657035,-460.0,0.00020821,2]
[375243472,1753596657044,-460.0,0.00020821,2]
[375243473,1753596657053,-1007.72,0.00020821,2]
[375243474,1753596657141,-460.0,0.00020821,2]
[375243475,1753596657152,-1381.47,0.00020821,2]
[375243476,1753596657161,-460.0,0.00020821,2]
[375243477,1753596657171,-460.0,0.00020821,2]
[375243478,1753596657181,-460.56,0.00020821,2]
[375243479,1753596657190,-460.0,0.00020821,2]
[375243480,1753596657199,-460.0,0.00020821,2]
[375243481,1753596657208,-460.0,0.00020821,2]
[375243482,1753596657218,-460.0,0.00020821,2]
[375243483,1753596657227,-460.0,0.00020821,2]
[375243484,1753596657237,-460.0,0.00020821,2]
[375243485,1753596657247,-1013.43,0.00020821,2]
[375243486,1753596657256,-460.0,0.00020821,2]
[375243487,1753596657265,-460.0,0.00020821,2]
[375243488,1753596657274,-460.0,0.00020821,2]
[375243489,1753596657284,-460.0,0.00020821,2]
[375243490,1753596657293,-1322.43,0.00020821,2]
[375243491,1753596657304,-463.05,0.00020821,2]
[375243492,1753596657314,-1359.23,0.00020821,2]
[375243493,1753596657323,-460.0,0.00020821,2]
[375243494,1753596657333,-553.64,0.00020821,2]
[375243495,1753596657343,-1138.3,0.00020821,2]
[375243496,1753596657352,-460.0,0.00020821,2]
[375243497,1753596657361,-460.0,0.00020821,2]
[375243498,1753596657370,-151.0,0.000209,4]
[375243499,1753596657379,-160.0,0.00020921,2]
[375243500,1753596657389,-160.0,0.00020921,2]
[375243501,1753596657398,-214.84090509,0.00020921,2]
[375243502,1753596657407,-160.0,0.00020921,2]
[375243503,1753596657416,-840.75038169,0.00020923,2]
[375243504,1753596657425,-25.92581554,0.00020934,4]
[375243505,1753596657439,-2335.08842175,0.00020934,4]
[375243506,1753596657448,-150.0,0.00020963,2]
[375243507,1753596657457,-360.0,0.00021086,2]
[375243508,1753596657467,-460.0,0.00021095,2]
[375243509,1753596657475,-460.0,0.00021095,2]
[375243510,1753596657485,-547.85,0.00021095,2]
[375243511,1753596657494,-460.0,0.00021095,2]
[375243512,1753596657504,-460.0,0.00021095,2]
[375243513,1753596657513,-460.0,0.00021095,2]
[375243514,1753596657522,-460.0,0.00021095,2]
[375243515,1753596657532,-587.21,0.00021095,2]
[375243516,1753596657541,-460.0,0.00021095,2]
[375243517,1753596657551,-3039.04,0.00021095,2]
[375243518,1753596657560,-460.0,0.00021095,2]
[375243519,1753596657570,-460.0,0.00021095,2]
[375243520,1753596657579,-460.0,0.00021095,2]
[375243521,1753596657589,-936.39,0.00021095,2]
[375243522,1753596657598,-460.0,0.00021095,2]
[375243523,1753596657608,-564.33,0.00021095,2]
[375243524,1753596657617,-634.76,0.00021095,2]
[375243525,1753596657627,-580.97,0.00021095,2]
[375243526,1753596657636,-460.0,0.00021095,2]
[375243527,1753596657646,-911.75,0.00021095,2]
[375243528,1753596657655,-460.0,0.00021095,2]
[375243529,1753596657666,-460.0,0.00021095,2]
[375243530,1753596657676,-572.8,0.00021095,2]
[375243531,1753596657685,-471.07,0.00021095,2]
[375243532,1753596657695,-2143.33,0.00021095,2]
[375243533,1753596657705,-1689.6,0.00021095,2]
[375243534,1753596657715,-487.05578112,0.00021095,2]
[375243535,1753596657724,-2858.67,0.00021095,2]
[375243536,1753596657734,-590.88,0.00021095,2]
[375243537,1753596657744,-460.0,0.00021095,2]
[375243538,1753596657755,-460.0,0.00021095,2]
[375243539,1753596657764,-527.8,0.00021095,2]
[375243540,1753596657773,-4.66570514,0.00021095,2]
[375243541,1753596657790,-455.33429486,0.00021095,2]
[375243542,1753596657799,-239.17509173,0.00021095,2]
[375243543,1753596657810,-220.82490827,0.00021095,2]
[375243544,1753596657819,-1427.28,0.00021095,2]
[375243545,1753596657828,-1048.08,0.00021095,2]
[375243546,1753596657838,-460.0,0.00021095,2]
[375243547,1753596657847,-460.0,0.00021095,2]
[375243548,1753596657856,-1007.72,0.00021095,2]
[375243549,1753596657864,-460.0,0.00021095,2]
[375243550,1753596657873,-1381.47,0.00021095,2]
[375243551,1753596657882,-460.0,0.00021095,2]
[375243552,1753596657891,-460.0,0.00021095,2]
[375243553,1753596657900,-460.56,0.00021095,2]
[375243554,1753596657909,-460.0,0.00021095,2]
[375243555,1753596657918,-460.0,0.00021095,2]
[375243556,1753596657927,-460.0,0.00021095,2]
[375243557,1753596657936,-460.0,0.00021095,2]
[375243558,1753596657945,-460.0,0.00021095,2]
[375243559,1753596657955,-460.0,0.00021095,2]
[375243560,1753596657963,-115.41030689,0.00021095,2]
[375243561,1753596657975,-898.01969311,0.00021095,2]
[375243562,1753596657984,-460.0,0.00021095,2]
[375243563,1753596657994,-460.0,0.00021095,2]
[375243564,1753596658003,-460.0,0.00021095,2]
[375243565,1753596658012,-460.0,0.00021095,2]
[375243566,1753596658021,-1322.43,0.00021095,2]
[375243567,1753596658030,-463.05,0.00021095,2]
[375243568,1753596658039,-1359.23,0.00021095,2]
[375243569,1753596658048,-460.0,0.00021095,2]
[375243570,1753596658058,-553.64,0.00021095,2]
[375243571,1753596658067,-460.0,0.00021095,2]
[375243572,1753596658076,-460.0,0.00021095,2]
[375243573,1753596658085,-3000.0,0.000211,2]
[375243574,1753596658094,-1012.39030689,0.0002111,2]
[375243575,1753596750324,500.0,0.00017831,2]
[375243576,1753596755744,500.0,0.00017831,2]
[375243577,1753596772318,-207.67848421,0.00018063,2]
[375243578,1753596776285,-194.69729419,0.00018063,2]
[375243579,1753596778608,-164.16062004,0.00018063,2]
[375243580,1753596780334,402.36790654,0.00018,2]
[375243581,1753596782223,-300.0,0.00018063,2]
[375243582,1753596784907,-250.89026766,0.00018063,2]
[375243583,1753596787701,-164.98017459,0.00018063,2]
[375243584,1753596789207,-189.84232309,0.00018063,2]
[375243585,1753596791422,-175.02566768,0.00018063,2]
[375243586,1753596796309,880.03106229,0.00018,2]
[375243591,1753597203883,6328.99,0.00018,2]
[375243593,1753597209828,-158.83007501,0.00018061,2]
[375243594,1753597223734,158.83007501,0.00018,2]
[375243595,1753597225574,275.76502,0.00013699,2]
[375243598,1753597411522,-202.53554886,0.00018013,2]
[375243599,1753597417872,-207.88811046,0.00018013,2]
[375243601,1753597523635,202.53554886,0.00017961,2]
[375243602,1753597624323,242.06848977,0.00017962,2]
[375243604,1753597669991,-221.37704264,0.00018,2]
[375243605,1753597672087,-295.496854,0.00018,2]
[375243606,1753597677750,-200.45661333,0.00018,2]
[375243607,1753597679516,-233.70346677,0.00018,2]
[375243608,1753597682376,300.0,0.00017999,2]
[375243613,1753597743540,300.0,0.00017999,2]
[375243616,1753597799921,9254.27856115,0.00017141,2]
[375243617,1753597799945,979.22040884,0.00017141,2]
[375243618,1753597800112,961.96147289,0.00017141,2]
[375243619,1753597800137,968.94026631,0.00017141,2]
[375243620,1753597800160,953.68250643,0.00017141,2]
[375243621,1753597800183,953.94902668,0.00017141,2]
[375243622,1753597800206,980.0,0.00017141,2]
[375243623,1753597800229,966.9475594,0.00017141,2]
[375243624,1753597801739,-284.75363568,0.00017141,2]
[375243625,1753597813062,-301.91,0.0001714,2]
[375243626,1753597815970,-164.89,0.0001714,2]
[375243627,1753597820009,-179.68281559,0.0001714,2]
[375243628,1753597821561,-246.21833825,0.0001714,2]
[375243629,1753597824555,466.8,0.0001701,2]
[375243630,1753597824952,-229.02887391,0.0001714,2]
[375243631,1753597826561,-78.26997225,0.0001714,2]
[375243632,1753597826584,-190.54423293,0.00017141,2]
[375243665,1753597832701,-8405.72232969,0.00017141,2]
[375243666,1753597832711,-287.0,0.00017999,2]
[375243668,1753597832720,-300.0,0.00017999,2]
[375243670,1753597832730,-300.0,0.00017999,2]
[375243671,1753597832740,-160.49995653,0.00018,2]
[375243700,1753597838538,-333.75261399,0.00017999,2]
[375243702,1753597838548,-496.92461146,0.00017999,2]
[375243704,1753597838558,-172.57006425,0.00017999,2]
[375243706,1753597838567,-500.0,0.00017999,2]
[375243708,1753597838577,-62064.74454502,0.00018,2]
[375243710,1753597838587,-163.00566401,0.00018,2]
[375243712,1753597838598,-32704.32545144,0.00018,2]
[375243714,1753597838608,-27608.47800808,0.00018,2]
[375243716,1753597838617,-5936.34287208,0.00018,2]
[375243718,1753597838626,-1200.0,0.00018062,2]
[375243720,1753597838636,-312.33595684,0.00018073,2]
[375243722,1753597838646,-2704.71191516,0.00018073,2]
[375243724,1753597838655,-363.12,0.00018158,3]
[375243726,1753597838664,-726.27,0.00018158,3]
[375243728,1753597838674,-500.0,0.00018167,2]
[375243730,1753597838683,-500.0,0.00018167,2]
[375243732,1753597838694,-202.59814411,0.00018167,2]
[375243734,1753597838703,-370000.0,0.00018168,2]
[375243736,1753597838713,-500.0,0.00018173,2]
[375243738,1753597838722,-227.8206592,0.00018368,2]
[375243740,1753597838731,-500.0,0.00018439,2]
[375243742,1753597838740,-1000.0,0.00018721,2]
[375243744,1753597838751,-419.0,0.00018811,2]
[375243746,1753597838765,-312.33595681,0.00018872,2]
[375243748,1753597838774,-200.66693593,0.000189,2]
[375243750,1753597838784,-3396.15088558,0.000189,2]
[375243752,1753597838794,-150.0,0.00018951,2]
[375243754,1753597838804,-151.0,0.00019,2]
[375243756,1753597838813,-3396.15088535,0.00019141,2]
[375243758,1753597838823,-500.0,0.00019173,2]
[375243760,1753597838832,-460.0,0.00019178,2]
[375243762,1753597838842,-166.31251367,0.00019178,2]
[375243764,1753597838852,-460.0,0.00019178,2]
[375243766,1753597838861,-460.53141045,0.00019178,2]
[375243768,1753597838871,-460.0,0.00019178,2]
[375243770,1753597838880,-465.04724949,0.00019178,2]
[375243772,1753597838890,-460.0,0.00019178,2]
[375243774,1753597838899,-460.0,0.00019178,2]
[375243776,1753597838909,-460.0,0.00019178,2]
[375243778,1753597838918,-460.0,0.00019178,2]
[375243780,1753597838928,-460.0,0.00019178,2]
[375243782,1753597838937,-1153.57,0.00019178,2]
[375243783,1753597838946,-460.0,0.00019178,2]
[375243785,1753597838956,-460.0,0.00019178,2]
[375243787,1753597838966,-608.82537601,0.00019178,2]
[375243789,1753597838975,-151.0,0.00019178,2]
[375243791,1753597838984,-151.0,0.00019178,2]
[375243794,1753597838994,-293.72464462,0.00019178,2]
[375243796,1753597839004,-151.0,0.00019178,2]
[375243798,1753597839013,-151.0,0.00019178,2]
[375243800,1753597839023,-460.0,0.00019178,2]
[375243802,1753597839032,-460.0,0.00019178,2]
[375243804,1753597839042,-460.0,0.00019178,2]
[375243805,1753597839051,-460.0,0.00019178,2]
[375243807,1753597839060,-460.0,0.00019178,2]
[375243810,1753597839070,-460.0,0.00019178,2]
[375243812,1753597839079,-277.73331554,0.00019178,2]
[375243814,1753597839088,-460.0,0.00019178,2]
[375243815,1753597839097,-460.0,0.00019178,2]
[375243817,1753597839107,-460.0,0.00019178,2]
[375243820,1753597839116,-596.92,0.00019178,2]
[375243822,1753597839125,-460.0,0.00019178,2]
[375243823,1753597839135,-460.0,0.00019178,2]
[375243825,1753597839145,-460.0,0.00019178,2]
[375243827,1753597839154,-460.0,0.00019178,2]
[375243829,1753597839163,-460.0,0.00019178,2]
[375243831,1753597839172,-460.0,0.00019178,2]
[375243833,1753597839181,-460.0,0.00019178,2]
[375243835,1753597839192,-460.0,0.00019178,2]
[375243838,1753597839202,-460.0,0.00019178,2]
[375243840,1753597839211,-460.0,0.00019178,2]
[375243842,1753597839220,-424.19901775,0.00019178,2]
[375243844,1753597839230,-464.39177726,0.00019178,2]
[375243846,1753597839239,-460.0,0.00019178,2]
[375243848,1753597839249,-460.0,0.00019178,2]
[375243850,1753597839258,-460.0,0.00019178,2]
[375243852,1753597839267,-460.0,0.00019178,2]
[375243854,1753597839276,-604.7956408,0.00019178,2]
[375243856,1753597839286,-460.0,0.00019178,2]
[375243857,1753597839296,-460.0,0.00019178,2]
[375243859,1753597839305,-460.0,0.00019178,2]
[375243862,1753597839316,-460.0,0.00019178,2]
[375243864,1753597839325,-516.9,0.00019178,2]
[375243866,1753597839334,-466.0895891,0.00019178,2]
[375243868,1753597839343,-460.0,0.00019178,2]
[375243870,1753597839353,-460.0,0.00019178,2]
[375243872,1753597839362,-460.0,0.00019178,2]
[375243874,1753597839371,-460.0,0.00019178,2]
[375243876,1753597839381,-460.0,0.00019178,2]
[375243878,1753597839390,-460.0,0.00019178,2]
[375243879,1753597839400,-460.0,0.00019178,2]
[375243882,1753597839409,-460.0,0.00019178,2]
[375243884,1753597839419,-460.0,0.00019178,2]
[375243886,1753597839428,-460.0,0.00019178,2]
[375243887,1753597839439,-495.47750282,0.00019178,2]
[375243889,1753597839448,-3300.37,0.00019178,2]
[375243891,1753597839458,-570.14,0.00019178,2]
[375243894,1753597839469,-460.0,0.00019178,2]
[375243896,1753597839480,-689.99,0.00019178,2]
[375243898,1753597839489,-460.0,0.00019178,2]
[375243900,1753597839499,-460.0,0.00019178,2]
[375243902,1753597839508,-460.0,0.00019178,2]
[375243904,1753597839518,-460.0,0.00019178,2]
[375243906,1753597839527,-463.84583748,0.00019178,2]
[375243908,1753597839536,-460.0,0.00019178,2]
[375243909,1753597839545,-3346.69,0.00019178,2]
[375243911,1753597839555,-460.0,0.00019178,2]
[375243913,1753597839565,-460.0,0.00019178,2]
[375243915,1753597839574,-389.31023217,0.00019178,2]
[375243918,1753597839584,-460.0,0.00019178,2]
[375243920,1753597839592,-460.0,0.00019178,2]
[375243922,1753597839601,-460.0,0.00019178,2]
[375243924,1753597839610,-1394.17,0.00019178,2]
[375243926,1753597839620,-460.0,0.00019178,2]
[375243928,1753597839629,-219.14,0.00019178,2]
[375243930,1753597839639,-460.0,0.00019178,2]
[375243932,1753597839649,-460.0,0.00019178,2]
[375243934,1753597839658,-460.0,0.00019178,2]
[375243936,1753597839667,-460.0,0.00019178,2]
[375243938,1753597839677,-460.0,0.00019178,2]
[375243940,1753597839686,-460.0,0.00019178,2]
[375243942,1753597839696,-460.0,0.00019178,2]
[375243944,1753597839705,-460.0,0.00019178,2]
[375243945,1753597839715,-666.87,0.00019178,2]
[375243947,1753597839724,-1797.73,0.00019178,2]
[375243950,1753597839733,-460.0,0.00019178,2]
[375243951,1753597839742,-460.0,0.00019178,2]
[375243952,1753597839752,-460.0,0.00019178,2]
[375243953,1753597839764,-647.09,0.00019178,2]
[375243954,1753597839774,-460.0,0.00019178,2]
[375243955,1753597839783,-460.0,0.00019178,2]
[375243956,1753597839793,-465.78350436,0.00019178,2]
[375243957,1753597839803,-460.0,0.00019178,2]
[375243958,1753597839813,-460.0,0.00019178,2]
[375243959,1753597839823,-460.0,0.00019178,2]
[375243960,1753597839833,-460.0,0.00019178,2]
[375243961,1753597839843,-460.0,0.00019178,2]
[375243962,1753597839852,-460.0,0.00019178,2]
[375243963,1753597839862,-504.22,0.00019178,2]
[375243964,1753597839871,-460.0,0.00019178,2]
[375243965,1753597839880,-1521.04,0.00019178,2]
[375243966,1753597839890,-422.9790265,0.00019178,2]
[375243967,1753597839900,-460.0,0.00019178,2]
[375243968,1753597839910,-636.2,0.00019178,2]
[375243969,1753597839918,-460.0,0.00019178,2]
[375243970,1753597839927,-460.0,0.00019178,2]
[375243971,1753597839937,-1183.8,0.00019178,2]
[375243972,1753597839946,-460.0,0.00019178,2]
[375243973,1753597839956,-460.0,0.00019178,2]